[Event "Titled Tuesday Blitz July 26 Early 2022"]
[White "Aravindh, Chithambaram VR."]
[Black "Madaminov, Mukhiddin"]
[WhiteFideId "5072786"]
[BlackFideId "14210703"]
[WhiteElo "2577"]
[BlackElo "2011"]
[Result "1-0"]
[Round "06"]
[TimeControl "180+1"]
[Date "2022.07.26"]
[WhiteClock "0:00:05"]
[BlackClock "0:00:03"]

1. b4 {[%clk 0:03:00]}  Nf6 {[%clk 0:02:59]} 2. Bb2 {[%clk 0:03:00]}  g6 {[%clk 0:03:00]} 3. g3 {[%clk 0:03:00]}  Bg7 {[%clk 0:03:00]} 4. Bg2 {[%clk 0:03:01]}  O-O {[%clk 0:03:00]} 5. Nf3 {[%clk 0:03:01]}  d6 {[%clk 0:02:59]} 6. d4 {[%clk 0:03:00]}  Nbd7 {[%clk 0:02:56]} 7. O-O {[%clk 0:02:59]}  e5 {[%clk 0:02:55]} 8. dxe5 {[%clk 0:03:00]}  Ng4 {[%clk 0:02:54]} 9. Nbd2 {[%clk 0:02:59]}  Ngxe5 {[%clk 0:02:54]} 10. Rb1 {[%clk 0:02:55]}  Re8 {[%clk 0:02:51]} 11. a3 {[%clk 0:02:53]}  a5 {[%clk 0:02:45]} 12. b5 {[%clk 0:02:51]}  Rb8 {[%clk 0:02:34]} 13. Nd4 {[%clk 0:02:37]}  Nc5 {[%clk 0:02:24]} 14. h3 {[%clk 0:02:35]}  h5 {[%clk 0:01:54]} 15. f4 {[%clk 0:02:30]}  Ned7 {[%clk 0:01:51]} 16. e4 {[%clk 0:02:22]}  Nf8 {[%clk 0:01:33]} 17. Qf3 {[%clk 0:02:11]}  Nfd7 {[%clk 0:00:49]} 18. Rbe1 {[%clk 0:02:07]}  Rf8 {[%clk 0:00:49]} 19. Nc4 {[%clk 0:02:05]}  Nb6 {[%clk 0:00:37]} 20. Nxb6 {[%clk 0:02:02]}  cxb6 {[%clk 0:00:37]} 21. f5 {[%clk 0:02:01]}  Be5 {[%clk 0:00:34]} 22. c3 {[%clk 0:01:56]}  Bd7 {[%clk 0:00:31]} 23. Bc1 {[%clk 0:01:52]}  Rc8 {[%clk 0:00:30]} 24. Bh6 {[%clk 0:01:48]}  Bg7 {[%clk 0:00:30]} 25. Bxg7 {[%clk 0:01:46]}  Kxg7 {[%clk 0:00:31]} 26. f6+ {[%clk 0:01:47]}  Kh7 {[%clk 0:00:31]} 27. e5 {[%clk 0:01:47]}  Be6 {[%clk 0:00:25]} 28. Re3 {[%clk 0:01:23]}  Bc4 {[%clk 0:00:22]} 29. Rfe1 {[%clk 0:01:22]}  dxe5 {[%clk 0:00:23]} 30. Rxe5 {[%clk 0:01:23]}  Nd3 {[%clk 0:00:23]} 31. Rxh5+ {[%clk 0:01:17]}  Kg8 {[%clk 0:00:22]} 32. Re7 {[%clk 0:01:10]}  Qd6 {[%clk 0:00:15]} 33. Rh4 {[%clk 0:00:44]}  Rc5 {[%clk 0:00:15]} 34. Qe3 {[%clk 0:00:40]}  Qxf6 {[%clk 0:00:14]} 35. Bf1 {[%clk 0:00:30]}  Nb2 {[%clk 0:00:12]} 36. Bxc4 {[%clk 0:00:25]}  Nxc4 {[%clk 0:00:13]} 37. Qh6 {[%clk 0:00:24]}  Qg7 {[%clk 0:00:14]} 38. Qxg7+ {[%clk 0:00:23]}  Kxg7 {[%clk 0:00:15]} 39. Rxb7 {[%clk 0:00:17]}  Kg8 {[%clk 0:00:14]} 40. Rf4 {[%clk 0:00:15]}  Nxa3 {[%clk 0:00:14]} 41. Rxb6 {[%clk 0:00:12]}  Rxc3 {[%clk 0:00:15]} 42. Kg2 {[%clk 0:00:13]}  Nc4 {[%clk 0:00:14]} 43. Ra6 {[%clk 0:00:13]}  Ne3+ {[%clk 0:00:13]} 44. Kf2 {[%clk 0:00:12]}  Nd5 {[%clk 0:00:13]} 45. Re4 {[%clk 0:00:12]}  Rc4 {[%clk 0:00:09]} 46. Kf3 {[%clk 0:00:11]}  Nc3 {[%clk 0:00:08]} 47. Rf4 {[%clk 0:00:10]}  a4 {[%clk 0:00:09]} 48. b6 {[%clk 0:00:07]}  Rb4 {[%clk 0:00:09]} 49. Nc6 {[%clk 0:00:06]}  Rb3 {[%clk 0:00:07]} 50. Kg4 {[%clk 0:00:05]}  Nd5 {[%clk 0:00:06]} 51. Rfxa4 {[%clk 0:00:04]}  Nxb6 {[%clk 0:00:07]} 52. Rd4 {[%clk 0:00:04]}  Nc8 {[%clk 0:00:05]} 53. h4 {[%clk 0:00:04]}  Rb6 {[%clk 0:00:05]} 54. Rxb6 {[%clk 0:00:03]}  Nxb6 {[%clk 0:00:06]} 55. Rd6 {[%clk 0:00:03]}  Kg7 {[%clk 0:00:05]} 56. Ne5 {[%clk 0:00:03]}  Nc8 {[%clk 0:00:05]} 57. Rd7 {[%clk 0:00:03]}  Kf6 {[%clk 0:00:06]} 58. Nc6 {[%clk 0:00:03]}  Ke6 {[%clk 0:00:07]} 59. Rb7 {[%clk 0:00:03]}  Nd6 {[%clk 0:00:07]} 60. Ra7 {[%clk 0:00:03]}  Ne4 {[%clk 0:00:05]} 61. Kf4 {[%clk 0:00:03]}  Nf6 {[%clk 0:00:05]} 62. Nd4+ {[%clk 0:00:03]}  Kd5 {[%clk 0:00:05]} 63. Nf3 {[%clk 0:00:04]}  Ke6 {[%clk 0:00:04]} 64. Ra6+ {[%clk 0:00:04]}  Ke7 {[%clk 0:00:05]} 65. Ra7+ {[%clk 0:00:04]}  Kd6 {[%clk 0:00:04]} 66. Ng5 {[%clk 0:00:04]}  Nd5+ {[%clk 0:00:04]} 67. Kf3 {[%clk 0:00:05]}  f5 {[%clk 0:00:04]} 68. Ra6+ {[%clk 0:00:05]}  Ke5 {[%clk 0:00:03]} 69. Re6+ {[%clk 0:00:03]}  Kd4 {[%clk 0:00:03]} 70. Rxg6 {[%clk 0:00:04]}  Rb8 {[%clk 0:00:04]} 71. Re6 {[%clk 0:00:02]}  Rb3+ {[%clk 0:00:04]} 72. Kg2 {[%clk 0:00:03]}  f4 {[%clk 0:00:05]} 73. Nf3+ {[%clk 0:00:02]}  Kc5 {[%clk 0:00:04]} 74. g4 {[%clk 0:00:02]}  Ne3+ {[%clk 0:00:05]} 75. Kh3 {[%clk 0:00:03]}  Nf5 {[%clk 0:00:05]} 76. gxf5 {[%clk 0:00:03]}  Rxf3+ {[%clk 0:00:05]} 77. Kg4 {[%clk 0:00:04]}  Rf1 {[%clk 0:00:05]} 78. f6 {[%clk 0:00:04]}  Kd5 {[%clk 0:00:06]} 79. Re8 {[%clk 0:00:04]}  f3 {[%clk 0:00:03]} 80. f7 {[%clk 0:00:04]}  Rg1+ {[%clk 0:00:04]} 81. Kxf3 {[%clk 0:00:02]}  Rf1+ {[%clk 0:00:03]} 82. Kg4 {[%clk 0:00:03]}  Rxf7 {[%clk 0:00:04]} 83. h5 {[%clk 0:00:03]}  Kd6 {[%clk 0:00:04]} 84. h6 {[%clk 0:00:03]}  Kd7 {[%clk 0:00:04]} 85. Re1 {[%clk 0:00:03]}  Rf2 {[%clk 0:00:03]} 86. Rh1 {[%clk 0:00:02]}  Rf8 {[%clk 0:00:03]} 87. h7 {[%clk 0:00:03]}  Rh8 {[%clk 0:00:03]} 88. Kg5 {[%clk 0:00:03]}  Ke7 {[%clk 0:00:03]} 89. Kg6 {[%clk 0:00:04]}  Kf8 {[%clk 0:00:01]} 90. Rh2 {[%clk 0:00:04]}  Ke7 {[%clk 0:00:01]} 91. Kg7 {[%clk 0:00:05]}  Rf8 {[%clk 0:00:02]} 92. Re2+ {[%clk 0:00:04]}  Kd6 {[%clk 0:00:02]} 93. Kxf8 {[%clk 0:00:05]}  Kd5 {[%clk 0:00:02]} 94. h8=Q {[%clk 0:00:06]}  Kc4 {[%clk 0:00:03]} 95. Qe5 {[%clk 0:00:06]}  Kb3 {[%clk 0:00:03]} 96. Qc5 {[%clk 0:00:05]}  Ka4 {[%clk 0:00:04]} 97. Qb6 {[%clk 0:00:03]}  Ka3 {[%clk 0:00:03]} 98. Re7 {[%clk 0:00:04]}  Ka2 {[%clk 0:00:03]} 99. Ra7# {[%clk 0:00:05]} 1-0


[Site "https://www.chess.com"]

[Event "Titled Tuesday Blitz July 26 Early 2022"]
[White "Bilan, Danila"]
[Black "Srihari L R"]
[WhiteFideId "24161918"]
[BlackFideId "46617116"]
[WhiteElo "2164"]
[BlackElo "2170"]
[Result "0-1"]
[Round "06"]
[TimeControl "180+1"]
[Date "2022.07.26"]
[WhiteClock "0:00:09"]
[BlackClock "0:00:04"]

1. d4 {[%clk 0:03:00]}  Nf6 {[%clk 0:02:54]} 2. Nf3 {[%clk 0:03:00]}  b6 {[%clk 0:02:51]} 3. g3 {[%clk 0:02:57]}  Bb7 {[%clk 0:02:49]} 4. Bg2 {[%clk 0:02:57]}  g6 {[%clk 0:02:49]} 5. O-O {[%clk 0:02:56]}  Bg7 {[%clk 0:02:49]} 6. c4 {[%clk 0:02:56]}  O-O {[%clk 0:02:49]} 7. Nc3 {[%clk 0:02:55]}  e6 {[%clk 0:02:46]} 8. Bg5 {[%clk 0:02:48]}  h6 {[%clk 0:02:42]} 9. Bf4 {[%clk 0:02:44]}  d6 {[%clk 0:02:39]} 10. Rc1 {[%clk 0:02:37]}  Nbd7 {[%clk 0:02:38]} 11. Re1 {[%clk 0:02:35]}  Qe7 {[%clk 0:02:36]} 12. e4 {[%clk 0:02:24]}  e5 {[%clk 0:02:35]} 13. Nd5 {[%clk 0:02:06]}  Nxd5 {[%clk 0:02:00]} 14. exd5 {[%clk 0:02:01]}  f6 {[%clk 0:01:57]} 15. dxe5 {[%clk 0:01:23]}  fxe5 {[%clk 0:01:49]} 16. Be3 {[%clk 0:01:20]}  a5 {[%clk 0:01:45]} 17. Nh4 {[%clk 0:01:16]}  g5 {[%clk 0:01:38]} 18. Ng6 {[%clk 0:01:14]}  Qf7 {[%clk 0:01:34]} 19. Nxf8 {[%clk 0:01:13]}  Nxf8 {[%clk 0:01:35]} 20. Bh3 {[%clk 0:01:09]}  Bc8 {[%clk 0:01:33]} 21. Bxc8 {[%clk 0:01:08]}  Rxc8 {[%clk 0:01:34]} 22. a3 {[%clk 0:01:00]}  Ng6 {[%clk 0:01:19]} 23. b4 {[%clk 0:00:58]}  axb4 {[%clk 0:01:19]} 24. axb4 {[%clk 0:00:59]}  e4 {[%clk 0:01:19]} 25. Bd4 {[%clk 0:00:50]}  Bxd4 {[%clk 0:01:18]} 26. Qxd4 {[%clk 0:00:51]}  Ne5 {[%clk 0:01:18]} 27. Qxe4 {[%clk 0:00:44]}  Rf8 {[%clk 0:00:59]} 28. Re2 {[%clk 0:00:37]}  Qh5 {[%clk 0:00:58]} 29. f4 {[%clk 0:00:24]}  Nf3+ {[%clk 0:00:30]} 30. Kg2 {[%clk 0:00:24]}  g4 {[%clk 0:00:20]} 31. Kh1 {[%clk 0:00:17]}  Rf7 {[%clk 0:00:14]} 32. c5 {[%clk 0:00:16]}  bxc5 {[%clk 0:00:13]} 33. bxc5 {[%clk 0:00:17]}  Qf5 {[%clk 0:00:12]} 34. cxd6 {[%clk 0:00:13]}  cxd6 {[%clk 0:00:10]} 35. Kg2 {[%clk 0:00:09]}  Qh5 {[%clk 0:00:09]} 36. Kh1 {[%clk 0:00:05]}  Qf5 {[%clk 0:00:08]} 37. Qxf5 {[%clk 0:00:05]}  Rxf5 {[%clk 0:00:08]} 38. Rd1 {[%clk 0:00:06]}  Rh5 {[%clk 0:00:07]} 39. Ra2 {[%clk 0:00:04]}  Kf7 {[%clk 0:00:06]} 40. Rf1 {[%clk 0:00:03]}  Rxd5 {[%clk 0:00:06]} 41. h4 {[%clk 0:00:03]}  Rd3 {[%clk 0:00:04]} 42. Kg2 {[%clk 0:00:03]}  Nd4 {[%clk 0:00:04]} 43. Rb2 {[%clk 0:00:02]}  Nf5 {[%clk 0:00:04]} 44. Ra1 {[%clk 0:00:03]}  Rxg3+ {[%clk 0:00:04]} 45. Kf2 {[%clk 0:00:03]}  Rf3+ {[%clk 0:00:04]} 46. Ke2 {[%clk 0:00:04]}  Nxh4 {[%clk 0:00:04]} 47. Rb6 {[%clk 0:00:04]}  Nf5 {[%clk 0:00:03]} 48. Ra5 {[%clk 0:00:03]}  Ke6 {[%clk 0:00:03]} 49. Rbb5 {[%clk 0:00:04]}  Nd4+ {[%clk 0:00:03]} 50. Kd2 {[%clk 0:00:05]}  Nxb5 {[%clk 0:00:03]} 51. Rxb5 {[%clk 0:00:05]}  Rxf4 {[%clk 0:00:04]} 52. Rh5 {[%clk 0:00:06]}  Rf6 {[%clk 0:00:04]} 53. Ke3 {[%clk 0:00:07]}  g3 {[%clk 0:00:04]} 54. Rh1 {[%clk 0:00:08]}  g2 {[%clk 0:00:04]} 55. Rg1 {[%clk 0:00:08]}  Rg6 {[%clk 0:00:04]} 56. Kf3 {[%clk 0:00:09]}  Kf5 {[%clk 0:00:04]} 0-1


[Site "https://www.chess.com"]

[Event "Titled Tuesday Blitz July 26 Early 2022"]
[White "Bressac, Stephane"]
[Black "Ardila, Oscar Humberto"]
[WhiteFideId "655945"]
[BlackFideId "4404742"]
[WhiteElo "2321"]
[BlackElo "1956"]
[Result "1-0"]
[Round "06"]
[TimeControl "180+1"]
[Date "2022.07.27"]
[WhiteClock "0:00:06"]
[BlackClock "0:00:05"]

1. e4 {[%clk 0:03:00]}  e5 {[%clk 0:02:59]} 2. Nf3 {[%clk 0:03:01]}  Nf6 {[%clk 0:02:57]} 3. d4 {[%clk 0:03:02]}  Nxe4 {[%clk 0:02:57]} 4. Bd3 {[%clk 0:02:59]}  d5 {[%clk 0:02:57]} 5. Nxe5 {[%clk 0:02:59]}  Nf6 {[%clk 0:02:57]} 6. O-O {[%clk 0:03:00]}  Be7 {[%clk 0:02:57]} 7. Bg5 {[%clk 0:03:00]}  O-O {[%clk 0:02:57]} 8. Nd2 {[%clk 0:03:00]}  Nbd7 {[%clk 0:02:52]} 9. c3 {[%clk 0:02:59]}  Nxe5 {[%clk 0:02:50]} 10. dxe5 {[%clk 0:02:59]}  Nd7 {[%clk 0:02:50]} 11. Bf4 {[%clk 0:02:54]}  Re8 {[%clk 0:02:46]} 12. Re1 {[%clk 0:02:49]}  Nf8 {[%clk 0:02:46]} 13. Nf3 {[%clk 0:02:46]}  Bg4 {[%clk 0:02:37]} 14. h3 {[%clk 0:02:46]}  Bxf3 {[%clk 0:02:26]} 15. Qxf3 {[%clk 0:02:47]}  c6 {[%clk 0:02:26]} 16. Rad1 {[%clk 0:02:43]}  Qd7 {[%clk 0:02:25]} 17. c4 {[%clk 0:02:39]}  d4 {[%clk 0:02:11]} 18. b3 {[%clk 0:02:15]}  c5 {[%clk 0:02:09]} 19. Be4 {[%clk 0:02:07]}  Rab8 {[%clk 0:02:08]} 20. Bd5 {[%clk 0:02:05]}  Ne6 {[%clk 0:02:07]} 21. Bd2 {[%clk 0:02:01]}  a6 {[%clk 0:02:00]} 22. g3 {[%clk 0:01:49]}  Red8 {[%clk 0:01:59]} 23. h4 {[%clk 0:01:48]}  b5 {[%clk 0:01:57]} 24. h5 {[%clk 0:01:41]}  bxc4 {[%clk 0:01:50]} 25. Bxc4 {[%clk 0:01:41]}  a5 {[%clk 0:01:47]} 26. Bd3 {[%clk 0:01:41]}  a4 {[%clk 0:01:35]} 27. Bc4 {[%clk 0:01:41]}  axb3 {[%clk 0:01:34]} 28. axb3 {[%clk 0:01:41]}  h6 {[%clk 0:01:28]} 29. Ba5 {[%clk 0:01:32]}  Rdc8 {[%clk 0:01:16]} 30. Qg4 {[%clk 0:01:27]}  Bg5 {[%clk 0:01:13]} 31. Bd2 {[%clk 0:01:23]}  Bxd2 {[%clk 0:01:11]} 32. Rxd2 {[%clk 0:01:24]}  Rd8 {[%clk 0:01:06]} 33. Qf5 {[%clk 0:01:21]}  Ng5 {[%clk 0:01:01]} 34. Qxd7 {[%clk 0:00:30]}  Rxd7 {[%clk 0:01:01]} 35. Kg2 {[%clk 0:00:28]}  Re7 {[%clk 0:00:55]} 36. f4 {[%clk 0:00:28]}  Ne6 {[%clk 0:00:54]} 37. Kf3 {[%clk 0:00:28]}  Kf8 {[%clk 0:00:54]} 38. Ra1 {[%clk 0:00:28]}  Reb7 {[%clk 0:00:51]} 39. Ke4 {[%clk 0:00:26]}  Ke7 {[%clk 0:00:50]} 40. Rda2 {[%clk 0:00:25]}  Rd7 {[%clk 0:00:35]} 41. Ra7 {[%clk 0:00:25]}  Rd8 {[%clk 0:00:35]} 42. Rxd7+ {[%clk 0:00:23]}  Rxd7 {[%clk 0:00:35]} 43. Ra8 {[%clk 0:00:20]}  d3 {[%clk 0:00:32]} 44. Bxd3 {[%clk 0:00:19]}  Rd4+ {[%clk 0:00:32]} 45. Ke3 {[%clk 0:00:19]}  Nc7 {[%clk 0:00:31]} 46. Ra7 {[%clk 0:00:18]}  Kd8 {[%clk 0:00:31]} 47. Bc4 {[%clk 0:00:17]}  f6 {[%clk 0:00:26]} 48. exf6 {[%clk 0:00:17]}  gxf6 {[%clk 0:00:26]} 49. Rb7 {[%clk 0:00:14]}  f5 {[%clk 0:00:24]} 50. Rb6 {[%clk 0:00:14]}  Rd1 {[%clk 0:00:20]} 51. Rxh6 {[%clk 0:00:12]}  Re1+ {[%clk 0:00:20]} 52. Kf2 {[%clk 0:00:12]}  Rb1 {[%clk 0:00:20]} 53. Rh8+ {[%clk 0:00:13]}  Ke7 {[%clk 0:00:20]} 54. h6 {[%clk 0:00:13]}  Rb2+ {[%clk 0:00:18]} 55. Kf3 {[%clk 0:00:13]}  Rb1 {[%clk 0:00:15]} 56. Kg2 {[%clk 0:00:09]}  Rb2+ {[%clk 0:00:15]} 57. Kh3 {[%clk 0:00:09]}  Rb1 {[%clk 0:00:14]} 58. Kh4 {[%clk 0:00:10]}  Rb2 {[%clk 0:00:13]} 59. Kg5 {[%clk 0:00:09]}  Rh2 {[%clk 0:00:11]} 60. h7 {[%clk 0:00:08]}  Ne8 {[%clk 0:00:11]} 61. Kxf5 {[%clk 0:00:04]}  Nd6+ {[%clk 0:00:09]} 62. Kg6 {[%clk 0:00:04]}  Ne4 {[%clk 0:00:07]} 63. Rg8 {[%clk 0:00:02]}  Nxg3 {[%clk 0:00:06]} 64. h8=Q {[%clk 0:00:01]}  Rxh8 {[%clk 0:00:06]} 65. Rxh8 {[%clk 0:00:02]}  Ne4 {[%clk 0:00:06]} 66. Rh7+ {[%clk 0:00:03]}  Kd6 {[%clk 0:00:05]} 67. Rh4 {[%clk 0:00:03]}  Nd2 {[%clk 0:00:05]} 68. f5 {[%clk 0:00:04]}  Nf3 {[%clk 0:00:06]} 69. f6 {[%clk 0:00:04]}  Nxh4+ {[%clk 0:00:05]} 70. Kg7 {[%clk 0:00:05]}  Nf5+ {[%clk 0:00:05]} 71. Kg6 {[%clk 0:00:06]}  Nd4 {[%clk 0:00:05]} 72. f7 {[%clk 0:00:06]}  Ke7 {[%clk 0:00:05]} 73. Kg5 {[%clk 0:00:05]}  Nc6 {[%clk 0:00:04]} 74. Kf5 {[%clk 0:00:05]}  Nd4+ {[%clk 0:00:04]} 75. Ke5 {[%clk 0:00:05]}  Nc6+ {[%clk 0:00:04]} 76. Kd5 {[%clk 0:00:05]}  Nd8 {[%clk 0:00:04]} 77. Kxc5 {[%clk 0:00:06]}  Nxf7 {[%clk 0:00:04]} 78. Bxf7 {[%clk 0:00:06]}  Kxf7 {[%clk 0:00:05]} 79. Kd6 {[%clk 0:00:06]}  Kf6 {[%clk 0:00:05]} 80. b4 {[%clk 0:00:06]} 1-0


[Site "https://www.chess.com"]

[Event "Titled Tuesday Blitz July 26 Early 2022"]
[White "Chen, Justin"]
[Black "Guzman, Christopher"]
[WhiteFideId "2098199"]
[BlackFideId "6405096"]
[WhiteElo "2289"]
[BlackElo "2244"]
[Result "1/2-1/2"]
[Round "06"]
[TimeControl "180+1"]
[Date "2022.07.27"]
[WhiteClock "0:00:02"]
[BlackClock "0:00:27"]

1. e4 {[%clk 0:03:00]}  c6 {[%clk 0:02:59]} 2. d4 {[%clk 0:03:00]}  d5 {[%clk 0:02:59]} 3. exd5 {[%clk 0:03:01]}  cxd5 {[%clk 0:02:56]} 4. Bd3 {[%clk 0:03:01]}  Nf6 {[%clk 0:02:55]} 5. c3 {[%clk 0:03:02]}  Nc6 {[%clk 0:02:56]} 6. Bf4 {[%clk 0:03:02]}  Bg4 {[%clk 0:02:55]} 7. Qb3 {[%clk 0:03:02]}  Na5 {[%clk 0:02:55]} 8. Qa4+ {[%clk 0:03:00]}  Bd7 {[%clk 0:02:55]} 9. Qc2 {[%clk 0:03:00]}  Qb6 {[%clk 0:02:54]} 10. Nf3 {[%clk 0:02:53]}  Bb5 {[%clk 0:02:54]} 11. Ne5 {[%clk 0:02:45]}  e6 {[%clk 0:02:52]} 12. Nd2 {[%clk 0:02:43]}  Rc8 {[%clk 0:02:52]} 13. O-O {[%clk 0:02:35]}  Be7 {[%clk 0:02:52]} 14. Rfe1 {[%clk 0:02:07]}  O-O {[%clk 0:02:51]} 15. Bg5 {[%clk 0:01:50]}  Bxd3 {[%clk 0:02:49]} 16. Nxd3 {[%clk 0:01:47]}  Qxd4 {[%clk 0:02:43]} 17. Be3 {[%clk 0:01:14]}  Qg4 {[%clk 0:02:36]} 18. Bxa7 {[%clk 0:01:13]}  Nc6 {[%clk 0:02:26]} 19. Be3 {[%clk 0:01:13]}  Rfe8 {[%clk 0:02:22]} 20. Nf3 {[%clk 0:01:10]}  Qg6 {[%clk 0:02:21]} 21. Qe2 {[%clk 0:01:03]}  Ne4 {[%clk 0:02:20]} 22. Nde5 {[%clk 0:00:59]}  Nxe5 {[%clk 0:02:19]} 23. Nxe5 {[%clk 0:01:00]}  Qf5 {[%clk 0:02:19]} 24. Nd3 {[%clk 0:00:55]}  Red8 {[%clk 0:02:16]} 25. Rad1 {[%clk 0:00:55]}  h6 {[%clk 0:02:12]} 26. f3 {[%clk 0:00:53]}  Nd6 {[%clk 0:02:12]} 27. Bb6 {[%clk 0:00:51]}  Re8 {[%clk 0:02:09]} 28. Qe5 {[%clk 0:00:48]}  Qxe5 {[%clk 0:02:07]} 29. Nxe5 {[%clk 0:00:48]}  Ra8 {[%clk 0:02:02]} 30. a3 {[%clk 0:00:47]}  Rec8 {[%clk 0:02:02]} 31. Bf2 {[%clk 0:00:43]}  Ra6 {[%clk 0:01:54]} 32. Re2 {[%clk 0:00:41]}  f6 {[%clk 0:01:49]} 33. Nd3 {[%clk 0:00:40]}  Nc4 {[%clk 0:01:46]} 34. Nf4 {[%clk 0:00:28]}  Kf7 {[%clk 0:01:43]} 35. Rde1 {[%clk 0:00:28]}  Ne5 {[%clk 0:01:35]} 36. Rd1 {[%clk 0:00:24]}  Rcc6 {[%clk 0:01:33]} 37. Nd3 {[%clk 0:00:22]}  Nc4 {[%clk 0:01:33]} 38. Kf1 {[%clk 0:00:20]}  g5 {[%clk 0:01:33]} 39. h4 {[%clk 0:00:13]}  Bf8 {[%clk 0:01:30]} 40. Bd4 {[%clk 0:00:12]}  Ra8 {[%clk 0:01:23]} 41. g4 {[%clk 0:00:12]}  Na5 {[%clk 0:01:16]} 42. Kg2 {[%clk 0:00:11]}  Nb3 {[%clk 0:01:16]} 43. Bf2 {[%clk 0:00:11]}  e5 {[%clk 0:01:12]} 44. Rh1 {[%clk 0:00:07]}  Kg6 {[%clk 0:01:00]} 45. Rd1 {[%clk 0:00:07]}  Rcc8 {[%clk 0:00:54]} 46. Rde1 {[%clk 0:00:02]}  Rd8 {[%clk 0:00:53]} 47. Rd1 {[%clk 0:00:03]}  Rac8 {[%clk 0:00:53]} 48. Ne1 {[%clk 0:00:02]}  Kf7 {[%clk 0:00:52]} 49. Nc2 {[%clk 0:00:02]}  Na5 {[%clk 0:00:48]} 50. Ne3 {[%clk 0:00:02]}  Ke6 {[%clk 0:00:48]} 51. hxg5 {[%clk 0:00:01]}  hxg5 {[%clk 0:00:47]} 52. Nf5 {[%clk 0:00:02]}  Nc4 {[%clk 0:00:47]} 53. Ne3 {[%clk 0:00:02]}  Nxe3+ {[%clk 0:00:46]} 54. Bxe3 {[%clk 0:00:03]}  Rc4 {[%clk 0:00:46]} 55. Red2 {[%clk 0:00:02]}  Bc5 {[%clk 0:00:43]} 56. Kf2 {[%clk 0:00:02]}  Bxe3+ {[%clk 0:00:41]} 57. Kxe3 {[%clk 0:00:03]}  Rc5 {[%clk 0:00:41]} 58. Rh1 {[%clk 0:00:02]}  Rb5 {[%clk 0:00:39]} 59. Rh7 {[%clk 0:00:02]}  d4+ {[%clk 0:00:39]} 60. cxd4 {[%clk 0:00:02]}  exd4+ {[%clk 0:00:39]} 61. Rxd4 {[%clk 0:00:01]}  Rxd4 {[%clk 0:00:38]} 62. Kxd4 {[%clk 0:00:02]}  Rxb2 {[%clk 0:00:39]} 63. Ke4 {[%clk 0:00:02]}  Rb3 {[%clk 0:00:37]} 64. Rc7 {[%clk 0:00:02]}  Kd6 {[%clk 0:00:37]} 65. Rf7 {[%clk 0:00:02]}  Ke6 {[%clk 0:00:37]} 66. Rc7 {[%clk 0:00:02]}  Rb5 {[%clk 0:00:37]} 67. Rc4 {[%clk 0:00:02]}  Re5+ {[%clk 0:00:36]} 68. Kd4 {[%clk 0:00:02]}  Ra5 {[%clk 0:00:37]} 69. a4 {[%clk 0:00:02]}  b5 {[%clk 0:00:36]} 70. axb5 {[%clk 0:00:01]}  Rxb5 {[%clk 0:00:37]} 71. Ke4 {[%clk 0:00:02]}  Re5+ {[%clk 0:00:36]} 72. Kd4 {[%clk 0:00:03]}  Re1 {[%clk 0:00:36]} 73. Rc3 {[%clk 0:00:03]}  Kf7 {[%clk 0:00:35]} 74. Re3 {[%clk 0:00:03]}  Rf1 {[%clk 0:00:35]} 75. Ke4 {[%clk 0:00:03]}  Kg6 {[%clk 0:00:35]} 76. Rd3 {[%clk 0:00:03]}  Re1+ {[%clk 0:00:36]} 77. Re3 {[%clk 0:00:04]}  Rd1 {[%clk 0:00:36]} 78. Rd3 {[%clk 0:00:04]}  Re1+ {[%clk 0:00:36]} 79. Re3 {[%clk 0:00:04]}  Ra1 {[%clk 0:00:37]} 80. Rd3 {[%clk 0:00:05]}  Ra4+ {[%clk 0:00:37]} 81. Ke3 {[%clk 0:00:05]}  Kf7 {[%clk 0:00:37]} 82. Kf2 {[%clk 0:00:05]}  Ke6 {[%clk 0:00:37]} 83. Ke3 {[%clk 0:00:05]}  Ke5 {[%clk 0:00:37]} 84. Rc3 {[%clk 0:00:06]}  Ra5 {[%clk 0:00:37]} 85. Rb3 {[%clk 0:00:06]}  Rc5 {[%clk 0:00:36]} 86. Ra3 {[%clk 0:00:06]}  Rd5 {[%clk 0:00:36]} 87. Rc3 {[%clk 0:00:07]}  Rb5 {[%clk 0:00:36]} 88. Ra3 {[%clk 0:00:07]}  Rc5 {[%clk 0:00:36]} 89. Rd3 {[%clk 0:00:07]}  f5 {[%clk 0:00:36]} 90. gxf5 {[%clk 0:00:07]}  Kxf5 {[%clk 0:00:37]} 91. Ra3 {[%clk 0:00:07]}  Rc1 {[%clk 0:00:36]} 92. Kf2 {[%clk 0:00:07]}  Rc4 {[%clk 0:00:35]} 93. Kg3 {[%clk 0:00:06]}  Kg6 {[%clk 0:00:34]} 94. Ra5 {[%clk 0:00:06]}  Kh5 {[%clk 0:00:34]} 95. Ra8 {[%clk 0:00:06]}  Rc3 {[%clk 0:00:33]} 96. Rg8 {[%clk 0:00:06]}  Rc1 {[%clk 0:00:32]} 97. Rh8+ {[%clk 0:00:06]}  Kg6 {[%clk 0:00:32]} 98. Rg8+ {[%clk 0:00:07]}  Kf6 {[%clk 0:00:32]} 99. Rf8+ {[%clk 0:00:08]}  Kg7 {[%clk 0:00:33]} 100. Ra8 {[%clk 0:00:08]}  Rg1+ {[%clk 0:00:32]} 101. Kf2 {[%clk 0:00:08]}  Rh1 {[%clk 0:00:32]} 102. Kg2 {[%clk 0:00:08]}  Rh4 {[%clk 0:00:32]} 103. Kg3 {[%clk 0:00:08]}  Rf4 {[%clk 0:00:32]} 104. Ra6 {[%clk 0:00:08]}  Rf8 {[%clk 0:00:31]} 105. Kg4 {[%clk 0:00:06]}  Rf4+ {[%clk 0:00:31]} 106. Kg3 {[%clk 0:00:06]}  Rf8 {[%clk 0:00:29]} 107. Rb6 {[%clk 0:00:06]}  Rf7 {[%clk 0:00:29]} 108. Rb4 {[%clk 0:00:05]}  Kg6 {[%clk 0:00:29]} 109. Kg4 {[%clk 0:00:06]}  Rf6 {[%clk 0:00:28]} 110. Re4 {[%clk 0:00:05]}  Rb6 {[%clk 0:00:25]} 111. Rd4 {[%clk 0:00:06]}  Ra6 {[%clk 0:00:24]} 112. Kg3 {[%clk 0:00:04]}  Kf5 {[%clk 0:00:24]} 113. Rd5+ {[%clk 0:00:04]}  Kf6 {[%clk 0:00:24]} 114. Rb5 {[%clk 0:00:04]}  Ra4 {[%clk 0:00:24]} 115. Rb6+ {[%clk 0:00:04]}  Kf5 {[%clk 0:00:25]} 116. Rb5+ {[%clk 0:00:05]}  Kg6 {[%clk 0:00:25]} 117. Rb6+ {[%clk 0:00:05]}  Kh5 {[%clk 0:00:25]} 118. Rb8 {[%clk 0:00:06]}  Ra1 {[%clk 0:00:26]} 119. Rh8+ {[%clk 0:00:06]}  Kg6 {[%clk 0:00:26]} 120. Rg8+ {[%clk 0:00:07]}  Kh6 {[%clk 0:00:26]} 121. Rb8 {[%clk 0:00:08]}  Rg1+ {[%clk 0:00:26]} 122. Kf2 {[%clk 0:00:08]}  Rh1 {[%clk 0:00:26]} 123. Kg2 {[%clk 0:00:09]}  Rh4 {[%clk 0:00:27]} 124. Kf2 {[%clk 0:00:08]}  Ra4 {[%clk 0:00:28]} 125. Kg3 {[%clk 0:00:08]}  Kh5 {[%clk 0:00:28]} 126. Kg2 {[%clk 0:00:06]}  Kg6 {[%clk 0:00:27]} 127. Kg3 {[%clk 0:00:05]}  Kf5 {[%clk 0:00:27]} 128. Rb5+ {[%clk 0:00:05]}  Kg6 {[%clk 0:00:27]} 129. Rb7 {[%clk 0:00:06]}  Kh5 {[%clk 0:00:27]} 130. Kf2 {[%clk 0:00:04]}  Ra1 {[%clk 0:00:27]} 131. Kg3 {[%clk 0:00:03]}  Ra3 {[%clk 0:00:27]} 132. Rg7 {[%clk 0:00:02]}  Kh6 {[%clk 0:00:27]} 133. Rg8 {[%clk 0:00:02]}  Kh5 {[%clk 0:00:27]} 134. Rh8+ {[%clk 0:00:02]}  Kg6 {[%clk 0:00:27]} 135. Rc8 {[%clk 0:00:03]}  Kf5 {[%clk 0:00:28]} 136. Rc5+ {[%clk 0:00:03]}  Kf6 {[%clk 0:00:28]} 137. Kg4 {[%clk 0:00:03]}  Ra4+ {[%clk 0:00:28]} 138. Kg3 {[%clk 0:00:04]}  Rb4 {[%clk 0:00:28]} 139. Ra5 {[%clk 0:00:04]}  Rb6 {[%clk 0:00:27]} 140. Rc5 {[%clk 0:00:02]}  Ra6 {[%clk 0:00:27]} 1/2-1/2


[Site "https://www.chess.com"]